[Event "ONJK U25"]
[Site "Enschede, Netherlands"]
[Date "2022.08.12"]
[Round "6.4"]
[White "Van Roon, Sjoerd"]
[Black "Van Iersel, Yorn"]
[Result "1-0"]
[TimeControl "90min + 30sec/move"]
[WhiteElo "2310"]
[BlackElo "1419"]

1. e4 {[%clk 01:30:58]} {[%emt 00:00:02]} e5 {[%clk 01:30:55]} {[%emt
00:00:06]} 2. Nf3 {[%clk 01:31:25]} {[%emt 00:00:03]} Nc6 {[%clk 01:31:20]}
{[%emt 00:00:06]} 3. Bb5 {[%clk 01:31:52]} {[%emt 00:00:03]} a6 {[%clk
01:31:47]} {[%emt 00:00:03]} 4. Ba4 {[%clk 01:32:19]} {[%emt 00:00:02]} Nf6
{[%clk 01:32:05]} {[%emt 00:00:13]} 5. O-O {[%clk 01:32:39]} {[%emt 00:00:10]}
b5 {[%clk 01:32:31]} {[%emt 00:00:04]} 6. Bb3 {[%clk 01:33:05]} {[%emt
00:00:04]} Bc5 {[%clk 01:32:47]} {[%emt 00:00:15]} 7. Re1 {[%clk 01:26:08]}
{[%emt 00:07:26]} d6 {[%clk 01:30:31]} {[%emt 00:02:45]} 8. c3 {[%clk
01:25:04]} {[%emt 00:01:35]} Bb6 {[%clk 01:28:35]} {[%emt 00:02:26]} 9. d4
{[%clk 01:24:01]} {[%emt 00:01:33]} h6 {[%clk 01:17:35]} {[%emt 00:11:30]} 10.
dxe5 {[%clk 01:13:51]} {[%emt 00:10:40]} Ng4 {[%clk 01:14:36]} {[%emt
00:03:29]} 11. Nd4 {[%clk 01:13:35]} {[%emt 00:00:46]} Nxd4 {[%clk 00:59:07]}
{[%emt 00:15:58]} 12. cxd4 {[%clk 01:12:53]} {[%emt 00:01:14]} dxe5 {[%clk
00:59:12]} {[%emt 00:00:24]} 13. h3 {[%clk 01:04:14]} {[%emt 00:09:09]} Nf6
{[%clk 00:56:36]} {[%emt 00:03:06]} 14. dxe5 {[%clk 00:56:06]} {[%emt
00:08:38]} Qxd1 {[%clk 00:56:04]} {[%emt 00:01:01]} 15. Bxd1 {[%clk 00:54:46]}
{[%emt 00:01:50]} Nd7 {[%clk 00:56:03]} {[%emt 00:00:32]} 16. e6 {[%clk
00:55:10]} {[%emt 00:00:06]} fxe6 {[%clk 00:55:49]} {[%emt 00:00:44]} 17. Bh5+
{[%clk 00:55:29]} {[%emt 00:00:10]} Ke7 {[%clk 00:55:26]} {[%emt 00:00:53]} 18.
Nc3 {[%clk 00:52:48]} {[%emt 00:03:11]} Nf6 {[%clk 00:51:27]} {[%emt 00:04:28]}
19. Bf3 {[%clk 00:51:48]} {[%emt 00:01:30]} Bb7 {[%clk 00:49:52]} {[%emt
00:02:05]} 20. Bf4 {[%clk 00:49:41]} {[%emt 00:02:37]} Rhg8 {[%clk 00:48:10]}
{[%emt 00:02:12]} 21. a4 {[%clk 00:43:33]} {[%emt 00:06:39]} b4 {[%clk
00:45:43]} {[%emt 00:02:57]} 22. Nb1 {[%clk 00:43:16]} {[%emt 00:00:47]} g5
{[%clk 00:40:27]} {[%emt 00:05:47]} 23. Bg3 {[%clk 00:43:37]} {[%emt 00:00:08]}
Rad8 {[%clk 00:39:26]} {[%emt 00:01:31]} 24. a5 {[%clk 00:42:23]} {[%emt
00:01:45]} Bd4 {[%clk 00:35:27]} {[%emt 00:04:28]} 25. Ra2 {[%clk 00:40:10]}
{[%emt 00:02:42]} e5 {[%clk 00:33:18]} {[%emt 00:02:39]} 26. Nd2 {[%clk
00:38:39]} {[%emt 00:02:01]} Bc8 {[%clk 00:31:32]} {[%emt 00:02:16]} 27. Rc1
{[%clk 00:37:35]} {[%emt 00:01:34]} Be6 {[%clk 00:30:52]} {[%emt 00:01:10]} 28.
Nc4 {[%clk 00:34:32]} {[%emt 00:03:33]} h5 {[%clk 00:28:52]} {[%emt 00:02:30]}
29. b3 {[%clk 00:33:36]} {[%emt 00:01:27]} Bxc4 {[%clk 00:26:47]} {[%emt
00:02:35]} 30. Rxc4 {[%clk 00:33:46]} {[%emt 00:00:20]} c5 {[%clk 00:27:02]}
{[%emt 00:00:15]} 31. Rc1 {[%clk 00:33:10]} {[%emt 00:01:05]} h4 {[%clk
00:26:51]} {[%emt 00:00:41]} 32. Bh2 {[%clk 00:33:10]} {[%emt 00:00:30]} g4
{[%clk 00:26:34]} {[%emt 00:00:47]} 33. hxg4 {[%clk 00:31:44]} {[%emt
00:01:56]} Nxg4 {[%clk 00:26:42]} {[%emt 00:00:22]} 34. Re2 {[%clk 00:31:35]}
{[%emt 00:00:40]} Rg5 {[%clk 00:25:11]} {[%emt 00:02:01]} 35. Bxg4 {[%clk
00:31:17]} {[%emt 00:00:47]} Rxg4 {[%clk 00:25:17]} {[%emt 00:00:25]} 36. Kh1
{[%clk 00:30:58]} {[%emt 00:00:49]} Rh8 {[%clk 00:24:51]} {[%emt 00:00:55]} 37.
f3 {[%clk 00:30:24]} {[%emt 00:01:04]} Rg3 {[%clk 00:25:08]} {[%emt 00:00:13]}
38. Rc4 {[%clk 00:27:42]} {[%emt 00:03:12]} Kd6 {[%clk 00:23:49]} {[%emt
00:01:49]} 39. Rd2 {[%clk 00:26:10]} {[%emt 00:02:02]} Kd7 {[%clk 00:22:40]}
{[%emt 00:01:39]} 40. Rxc5 {[%clk 00:25:29]} {[%emt 00:01:12]} Ke7 {[%clk
00:19:31]} {[%emt 00:03:38]} 41. Rc4 {[%clk 00:24:20]} {[%emt 00:01:39]} Bc3
{[%clk 00:19:08]} {[%emt 00:00:53]} 42. Rc7+ {[%clk 00:22:14]} {[%emt
00:02:36]} Kf6 {[%clk 00:19:13]} {[%emt 00:00:25]} 43. Rd6+ {[%clk 00:22:13]}
{[%emt 00:00:31]} Kg5 {[%clk 00:19:21]} {[%emt 00:00:22]} 44. Kg1 {[%clk
00:20:12]} {[%emt 00:02:31]} Bd4+ {[%clk 00:18:58]} {[%emt 00:00:54]} 45. Kf1
{[%clk 00:17:23]} {[%emt 00:03:19]} Rf8 {[%clk 00:17:38]} {[%emt 00:01:50]} 46.
Rg7+ {[%clk 00:17:21]} {[%emt 00:00:31]} Kf4 {[%clk 00:17:54]} {[%emt
00:00:15]} 47. Ke1 {[%clk 00:17:43]} {[%emt 00:00:55]} 1-0

[Event "ONJK U25"]
[Site "Enschede, Netherlands"]
[Date "2022.08.12"]
[Round "6.5"]
[White "Heskes, Johan"]
[Black "Andringa, Jibbe"]
[Result "1-0"]
[TimeControl "90min + 30sec/move"]
[WhiteElo "1566"]
[BlackElo "1000"]

1. d4 {[%clk 01:30:57]} {[%emt 00:00:02]} d5 {[%clk 01:30:58]} {[%emt
00:00:03]} 2. c4 {[%clk 01:31:20]} {[%emt 00:00:07]} e5 {[%clk 01:31:13]}
{[%emt 00:00:14]} 3. dxe5 {[%clk 01:31:43]} {[%emt 00:00:07]} d4 {[%clk
01:31:32]} {[%emt 00:00:11]} 4. Nf3 {[%clk 01:32:01]} {[%emt 00:00:12]} Nc6
{[%clk 01:31:47]} {[%emt 00:00:15]} 5. a3 {[%clk 01:31:59]} {[%emt 00:00:33]}
Nge7 {[%clk 01:32:01]} {[%emt 00:00:16]} 6. e3 {[%clk 01:31:41]} {[%emt
00:00:47]} Bg4 {[%clk 01:31:40]} {[%emt 00:00:51]} 7. e6 {[%clk 01:29:33]}
{[%emt 00:02:39]} fxe6 {[%clk 01:26:34]} {[%emt 00:05:33]} 8. exd4 {[%clk
01:26:41]} {[%emt 00:03:25]} Bxf3 {[%clk 01:24:40]} {[%emt 00:02:23]} 9. Qxf3
{[%clk 01:26:50]} {[%emt 00:00:22]} Nxd4 {[%clk 01:23:44]} {[%emt 00:01:25]} 10.
Qd1 {[%clk 01:27:08]} {[%emt 00:00:13]} Nec6 {[%clk 01:21:36]} {[%emt
00:02:38]} 11. Be3 {[%clk 01:26:27]} {[%emt 00:01:11]} a5 {[%clk 01:20:22]}
{[%emt 00:01:44]} 12. Bd3 {[%clk 01:24:50]} {[%emt 00:02:07]} Qf6 {[%clk
01:16:33]} {[%emt 00:04:19]} 13. O-O {[%clk 01:20:58]} {[%emt 00:04:22]} Bd6
{[%clk 01:14:53]} {[%emt 00:02:10]} 14. Qh5+ {[%clk 01:13:28]} {[%emt
00:08:00]} g6 {[%clk 01:12:51]} {[%emt 00:02:32]} 15. Qg5 {[%clk 01:13:10]}
{[%emt 00:00:48]} O-O {[%clk 01:11:00]} {[%emt 00:02:20]} 16. Qxf6 {[%clk
01:11:47]} {[%emt 00:01:53]} Rxf6 {[%clk 01:11:13]} {[%emt 00:00:16]} 17. Nc3
{[%clk 01:11:56]} {[%emt 00:00:23]} Ne5 {[%clk 01:09:01]} {[%emt 00:02:41]} 18.
Bxd4 {[%clk 01:10:23]} {[%emt 00:02:04]} Rd8 {[%clk 01:06:14]} {[%emt
00:03:17]} 19. f4 {[%emt 00:07:46]} Nxd3 {[%clk 01:00:48]} {[%emt 00:00:02]} 20.
Bxf6 {[%clk 01:09:11]} {[%emt 00:00:20]} Bc5+ {[%clk 01:00:41]} {[%emt
00:00:37]} 21. Kh1 {[%clk 01:09:30]} {[%emt 00:00:10]} Nf2+ {[%clk 01:00:28]}
{[%emt 00:00:44]} 22. Rxf2 {[%clk 01:09:53]} {[%emt 00:00:08]} Rf8 {[%clk
00:58:17]} {[%emt 00:02:40]} 23. Bh4 {[%clk 01:10:14]} {[%emt 00:00:08]} g5
{[%clk 00:57:34]} {[%emt 00:01:14]} 24. Bg3 {[%clk 01:10:33]} {[%emt 00:00:10]}
Bxf2 {[%clk 00:57:26]} {[%emt 00:00:38]} 25. Bxf2 {[%clk 01:10:59]} {[%emt
00:00:05]} Rxf4 {[%clk 00:57:39]} {[%emt 00:00:16]} 26. Bg3 {[%clk 01:11:18]}
{[%emt 00:00:11]} Rxc4 {[%clk 00:57:51]} {[%emt 00:00:16]} 27. Re1 {[%clk
01:11:33]} {[%emt 00:00:17]} b5 {[%clk 00:57:29]} {[%emt 00:00:53]} 28. Nxb5
{[%clk 01:11:05]} {[%emt 00:00:58]} Rc2 {[%clk 00:57:43]} {[%emt 00:00:15]} 29.
Be5 {[%clk 01:11:22]} {[%emt 00:00:13]} c6 {[%clk 00:57:32]} {[%emt 00:00:42]}
30. Nd6 {[%clk 01:11:22]} {[%emt 00:00:28]} Kf8 {[%clk 00:57:22]} {[%emt
00:00:41]} 31. Rf1+ {[%clk 01:11:22]} {[%emt 00:00:30]} Kg8 {[%clk 00:57:11]}
{[%emt 00:00:41]} 32. h3 {[%clk 01:11:30]} {[%emt 00:00:21]} h5 {[%clk
00:57:21]} {[%emt 00:00:21]} 33. Bc3 {[%clk 01:10:36]} {[%emt 00:01:24]} g4
{[%clk 00:57:08]} {[%emt 00:00:43]} 34. hxg4 {[%clk 01:10:57]} {[%emt
00:00:08]} hxg4 {[%clk 00:57:26]} {[%emt 00:00:12]} 35. Kh2 {[%clk 01:11:23]}
{[%emt 00:00:05]} Kh7 {[%clk 00:57:04]} {[%emt 00:00:52]} 36. Kg3 {[%clk
01:11:41]} {[%emt 00:00:10]} Kg6 {[%clk 00:57:11]} {[%emt 00:00:23]} 37. Rf6+
{[%clk 01:11:41]} {[%emt 00:00:30]} Kg5 {[%clk 00:57:00]} {[%emt 00:00:41]} 38.
Nf7+ {[%clk 01:12:05]} {[%emt 00:00:07]} Kh5 {[%clk 00:57:06]} {[%emt
00:00:25]} 39. Rh6# {[%clk 01:12:27]} {[%emt 00:00:07]} 1-0

[Event "ONJK U25"]
[Site "Enschede, Netherlands"]
[Date "2022.08.12"]
[Round "6.6"]
[White "Nies, Levi"]
[Black "Meulenkolk, Jan-Geert"]
[Result "1-0"]
[TimeControl "90min + 30sec/move"]
[WhiteElo "1570"]
[BlackElo "1681"]

1. e4 {[%clk 01:30:58]} {[%emt 00:00:01]} c5 {[%clk 01:30:52]} {[%emt
00:00:08]} 2. Nc3 {[%clk 01:31:27]} {[%emt 00:00:02]} Nc6 {[%clk 01:30:55]}
{[%emt 00:00:27]} 3. f4 {[%clk 01:31:56]} {[%emt 00:00:01]} g6 {[%clk
01:30:55]} {[%emt 00:00:29]} 4. Nf3 {[%clk 01:32:21]} {[%emt 00:00:05]} Bg7
{[%clk 01:31:09]} {[%emt 00:00:15]} 5. Bc4 {[%clk 01:32:49]} {[%emt 00:00:02]}
e6 {[%clk 01:31:02]} {[%emt 00:00:37]} 6. O-O {[%clk 01:32:59]} {[%emt
00:00:20]} Nge7 {[%clk 01:31:09]} {[%emt 00:00:23]} 7. Qe1 {[%clk 01:33:25]}
{[%emt 00:00:05]} O-O {[%clk 01:30:54]} {[%emt 00:00:45]} 8. d3 {[%clk
01:33:15]} {[%emt 00:00:40]} d5 {[%clk 01:30:21]} {[%emt 00:01:02]} 9. Bb3
{[%clk 01:33:44]} {[%emt 00:00:02]} Nd4 {[%clk 01:30:13]} {[%emt 00:00:37]} 10.
Nxd4 {[%clk 01:33:30]} {[%emt 00:00:44]} cxd4 {[%clk 01:29:52]} {[%emt
00:00:51]} 11. Ne2 {[%clk 01:33:29]} {[%emt 00:00:32]} dxe4 {[%clk 01:29:44]}
{[%emt 00:00:38]} 12. dxe4 {[%clk 01:33:58]} {[%emt 00:00:01]} b5 {[%clk
01:29:08]} {[%emt 00:01:05]} 13. Qh4 {[%clk 01:33:19]} {[%emt 00:01:10]} a5
{[%clk 01:26:04]} {[%emt 00:03:34]} 14. a4 {[%clk 01:33:05]} {[%emt 00:00:44]}
b4 {[%clk 01:21:49]} {[%emt 00:04:44]} 15. Ng3 {[%clk 01:33:23]} {[%emt
00:00:12]} Ba6 {[%clk 01:17:30]} {[%emt 00:04:49]} 16. Rf3 {[%clk 01:30:03]}
{[%emt 00:03:50]} Re8 {[%clk 01:11:16]} {[%emt 00:06:45]} 17. f5 {[%clk
01:20:03]} {[%emt 00:18:16]} exf5 {[%clk 01:08:21]} {[%emt 00:03:24]} 18. Bh6
{[%clk 01:18:45]} {[%emt 00:01:48]} Nc6 {[%clk 01:03:59]} {[%emt 00:04:53]} 19.
Bg5 {[%clk 01:12:19]} {[%emt 00:06:56]} Qd7 {[%clk 00:54:02]} {[%emt 00:10:26]}
20. exf5 {[%clk 01:09:23]} {[%emt 00:03:27]} Ne5 {[%clk 00:49:57]} {[%emt
00:04:34]} 21. Rf4 {[%clk 01:01:41]} {[%emt 00:08:12]} Bc4 {[%clk 00:41:35]}
{[%emt 00:08:53]} 22. Ne4 {[%clk 00:46:32]} {[%emt 00:15:38]} Bxb3 {[%clk
00:29:47]} {[%emt 00:12:19]} 23. Nf6+ {[%clk 00:46:30]} {[%emt 00:00:32]} Bxf6
{[%clk 00:29:59]} {[%emt 00:00:17]} 24. Bxf6 {[%clk 00:46:59]} {[%emt
00:00:02]} Ra6 {[%clk 00:24:58]} {[%emt 00:05:31]} 25. Qxh7+ {[%clk 00:46:48]}
{[%emt 00:00:40]} Kxh7 {[%clk 00:24:52]} {[%emt 00:00:36]} 26. Rh4+ {[%clk
00:47:17]} {[%emt 00:00:01]} Kg8 {[%clk 00:25:00]} {[%emt 00:00:22]} 27. Rh8#
{[%clk 00:47:15]} {[%emt 00:00:02]} 1-0

[Event "ONJK U25"]
[Site "Enschede, Netherlands"]
[Date "2022.08.13"]
[Round "7.1"]
[White "Baselmans, Luuk"]
[Black "Heskes, Johan"]
[Result "1-0"]
[TimeControl "90min + 30sec/move"]
[WhiteElo "2256"]
[BlackElo "1566"]

1. e4 {[%clk 01:30:57]} {[%emt 00:00:02]} e5 {[%clk 01:30:54]} {[%emt
00:00:06]} 2. Nf3 {[%clk 01:31:22]} {[%emt 00:00:06]} f5 {[%clk 01:31:20]}
{[%emt 00:00:04]} 3. Nxe5 {[%clk 01:31:26]} {[%emt 00:00:25]} Qf6 {[%clk
01:31:44]} {[%emt 00:00:06]} 4. d4 {[%clk 01:31:44]} {[%emt 00:00:13]} d6
{[%clk 01:32:08]} {[%emt 00:00:06]} 5. Nc4 {[%clk 01:32:02]} {[%emt 00:00:11]}
fxe4 {[%clk 01:32:32]} {[%emt 00:00:06]} 6. Nc3 {[%clk 01:32:24]} {[%emt
00:00:08]} Qg6 {[%clk 01:32:56]} {[%emt 00:00:06]} 7. f3 {[%clk 01:32:39]}
{[%emt 00:00:16]} exf3 {[%clk 01:33:14]} {[%emt 00:00:12]} 8. Qxf3 {[%clk
01:33:01]} {[%emt 00:00:07]} Qg4 {[%clk 01:33:38]} {[%emt 00:00:06]} 9. Qf2
{[%clk 01:27:56]} {[%emt 00:05:36]} c6 {[%clk 01:27:33]} {[%emt 00:06:35]} 10.
Bd3 {[%clk 01:24:38]} {[%emt 00:03:47]} Nf6 {[%clk 01:27:09]} {[%emt 00:00:55]}
11. O-O {[%clk 01:24:18]} {[%emt 00:00:50]} Be7 {[%clk 01:24:51]} {[%emt
00:02:48]} 12. Re1 {[%clk 01:17:13]} {[%emt 00:07:34]} Qd7 {[%clk 01:22:30]}
{[%emt 00:02:51]} 13. Bg5 {[%clk 01:11:19]} {[%emt 00:06:24]} O-O {[%clk
01:20:32]} {[%emt 00:02:28]} 14. Qh4 {[%clk 01:11:33]} {[%emt 00:00:16]} h6
{[%clk 01:20:06]} {[%emt 00:01:00]} 15. Bxf6 {[%clk 01:04:13]} {[%emt
00:07:47]} Bxf6 {[%clk 01:20:03]} {[%emt 00:00:33]} 16. Qe4 {[%clk 01:04:35]}
{[%emt 00:00:08]} Qf5 {[%clk 01:19:58]} {[%emt 00:00:35]} 17. Nxd6 {[%clk
01:04:14]} {[%emt 00:00:52]} Qxe4 {[%clk 01:20:05]} {[%emt 00:00:23]} 18. Rxe4
{[%clk 01:04:21]} {[%emt 00:00:23]} Nd7 {[%clk 01:19:55]} {[%emt 00:00:40]} 19.
Ne2 {[%clk 00:59:13]} {[%emt 00:05:37]} Nb6 {[%clk 01:19:15]} {[%emt 00:01:10]}
20. Rf1 {[%clk 00:56:07]} {[%emt 00:03:36]} Rd8 {[%clk 01:18:21]} {[%emt
00:01:24]} 21. Ne8 {[%clk 00:55:13]} {[%emt 00:01:25]} Nd7 {[%clk 01:13:53]}
{[%emt 00:04:59]} 22. c3 {[%clk 00:51:49]} {[%emt 00:03:53]} b5 {[%clk
01:12:38]} {[%emt 00:01:45]} 23. Nf4 {[%clk 00:48:13]} {[%emt 00:04:06]} Bb7
{[%clk 01:11:41]} {[%emt 00:01:26]} 24. Nd6 {[%clk 00:47:44]} {[%emt 00:00:59]}
Rdb8 {[%clk 01:11:34]} {[%emt 00:00:38]} 25. Ne6 {[%clk 00:47:44]} {[%emt
00:00:29]} c5 {[%clk 01:11:16]} {[%emt 00:00:49]} 26. Nxb7 {[%clk 00:47:49]}
{[%emt 00:00:25]} Rxb7 {[%clk 01:11:36]} {[%emt 00:00:09]} 27. dxc5 {[%clk
00:47:31]} {[%emt 00:00:48]} Rc8 {[%clk 01:11:49]} {[%emt 00:00:17]} 28. Rf5
{[%clk 00:46:43]} {[%emt 00:01:18]} a6 {[%clk 01:11:37]} {[%emt 00:00:43]} 29.
a4 {[%clk 00:46:00]} {[%emt 00:01:13]} Nf8 {[%clk 01:09:47]} {[%emt 00:02:20]}
30. Rd5 {[%clk 00:43:42]} {[%emt 00:02:48]} Nxe6 {[%clk 01:09:09]} {[%emt
00:01:07]} 31. Rxe6 {[%clk 00:44:06]} {[%emt 00:00:06]} Be7 {[%clk 01:09:12]}
{[%emt 00:00:28]} 32. c6 {[%clk 00:44:19]} {[%emt 00:00:17]} Rbc7 {[%clk
01:09:15]} {[%emt 00:00:27]} 33. axb5 {[%clk 00:44:20]} {[%emt 00:00:29]} axb5
{[%clk 01:09:35]} {[%emt 00:00:10]} 34. Bxb5 {[%clk 00:44:40]} {[%emt
00:00:10]} Rf8 {[%clk 01:09:53]} {[%emt 00:00:12]} 35. b4 {[%clk 00:42:50]}
{[%emt 00:02:19]} Bf6 {[%clk 01:09:46]} {[%emt 00:00:38]} 36. Re3 {[%clk
00:40:18]} {[%emt 00:03:02]} Ra7 {[%clk 01:09:47]} {[%emt 00:00:29]} 37. Rd1
{[%clk 00:40:29]} {[%emt 00:00:18]} Bd8 {[%clk 01:08:50]} {[%emt 00:01:27]} 38.
Rf3 {[%clk 00:39:52]} {[%emt 00:01:07]} Bb6+ {[%clk 01:08:13]} {[%emt
00:01:07]} 39. Kf1 {[%clk 00:40:11]} {[%emt 00:00:12]} Rb8 {[%clk 01:08:32]}
{[%emt 00:00:11]} 40. Bc4+ {[%clk 00:40:21]} {[%emt 00:00:20]} Kh7 {[%clk
01:08:47]} {[%emt 00:00:14]} 41. Rf7 {[%clk 00:40:21]} {[%emt 00:00:30]} Rxf7+
{[%clk 01:07:57]} {[%emt 00:01:21]} 42. Bxf7 {[%clk 00:40:45]} {[%emt
00:00:06]} Rf8 {[%clk 01:08:17]} {[%emt 00:00:10]} 43. Rd7 {[%clk 00:41:08]}
{[%emt 00:00:07]} g5 {[%clk 01:08:28]} {[%emt 00:00:19]} 44. Ke2 {[%clk
00:41:14]} {[%emt 00:00:23]} Kg7 {[%clk 01:08:49]} {[%emt 00:00:10]} 45. Bd5+
{[%clk 00:41:03]} {[%emt 00:00:41]} Kf6 {[%clk 01:08:56]} {[%emt 00:00:22]} 46.
Rb7 {[%clk 00:40:43]} {[%emt 00:00:51]} Bg1 {[%clk 01:08:52]} {[%emt 00:00:33]}
47. h3 {[%clk 00:39:44]} {[%emt 00:01:29]} Bh2 {[%clk 01:08:53]} {[%emt
00:00:29]} 48. Kd3 {[%clk 00:40:01]} {[%emt 00:00:13]} Ke5 {[%clk 01:09:02]}
{[%emt 00:00:21]} 49. Rd7 {[%clk 00:40:10]} {[%emt 00:00:21]} Rc8 {[%clk
01:09:10]} {[%emt 00:00:23]} 50. b5 {[%clk 00:40:31]} {[%emt 00:00:08]} Bg1
{[%clk 01:09:24]} {[%emt 00:00:16]} 51. Bf3 {[%clk 00:40:21]} {[%emt 00:00:39]}
Bb6 {[%clk 01:08:51]} {[%emt 00:01:03]} 52. Rb7 {[%clk 00:40:24]} {[%emt
00:00:28]} Bg1 {[%clk 01:09:04]} {[%emt 00:00:16]} 53. c7 {[%clk 00:39:58]}
{[%emt 00:00:57]} Kd6 {[%clk 01:09:21]} {[%emt 00:00:13]} 54. b6 {[%clk
00:40:20]} {[%emt 00:00:08]} 1-0

[Event "ONJK U25"]
[Site "Enschede, Netherlands"]
[Date "2022.08.13"]
[Round "7.2"]
[White "Boudry, William"]
[Black "Merkon, Oseb"]
[Result "1-0"]
[TimeControl "90min + 30sec/move"]
[WhiteElo "2115"]
[BlackElo "1954"]

1. d4 {[%clk 01:30:47]} {[%emt 00:00:12]} Nf6 {[%clk 01:30:11]} {[%emt
00:00:50]} 2. Nf3 {[%clk 01:31:05]} {[%emt 00:00:12]} g6 {[%clk 01:30:26]}
{[%emt 00:00:16]} 3. g3 {[%clk 01:30:46]} {[%emt 00:00:48]} Bg7 {[%clk
01:30:51]} {[%emt 00:00:05]} 4. Bg2 {[%clk 01:31:11]} {[%emt 00:00:04]} O-O
{[%clk 01:31:10]} {[%emt 00:00:12]} 5. O-O {[%clk 01:31:29]} {[%emt 00:00:12]}
d6 {[%clk 01:29:41]} {[%emt 00:01:59]} 6. b3 {[%clk 01:31:11]} {[%emt
00:00:48]} Nc6 {[%clk 01:29:05]} {[%emt 00:01:05]} 7. Bb2 {[%clk 01:31:35]}
{[%emt 00:00:07]} Nd7 {[%clk 01:29:17]} {[%emt 00:00:18]} 8. Qc1 {[%clk
01:31:54]} {[%emt 00:00:10]} e5 {[%clk 01:28:34]} {[%emt 00:01:13]} 9. dxe5
{[%clk 01:31:46]} {[%emt 00:00:38]} Ndxe5 {[%clk 01:24:28]} {[%emt 00:04:36]}
10. Nxe5 {[%clk 01:31:31]} {[%emt 00:00:45]} Nxe5 {[%clk 01:19:19]} {[%emt
00:05:39]} 11. c4 {[%clk 01:31:09]} {[%emt 00:00:52]} Rb8 {[%clk 01:13:57]}
{[%emt 00:05:52]} 12. Nc3 {[%clk 01:29:57]} {[%emt 00:01:41]} Be6 {[%clk
01:13:29]} {[%emt 00:00:58]} 13. Qd2 {[%clk 01:29:30]} {[%emt 00:00:57]} Qd7
{[%clk 01:12:59]} {[%emt 00:01:00]} 14. Nd5 {[%clk 01:23:08]} {[%emt 00:06:52]}
Bxd5 {[%clk 01:06:21]} {[%emt 00:07:08]} 15. cxd5 {[%clk 01:21:48]} {[%emt
00:01:51]} c5 {[%clk 01:05:08]} {[%emt 00:01:43]} 16. dxc6 {[%clk 01:21:28]}
{[%emt 00:00:50]} Nxc6 {[%clk 01:00:22]} {[%emt 00:05:15]} 17. Bxg7 {[%clk
01:17:18]} {[%emt 00:04:40]} Kxg7 {[%clk 01:00:49]} {[%emt 00:00:03]} 18. Rfd1
{[%clk 01:17:37]} {[%emt 00:00:11]} Rfd8 {[%clk 00:56:03]} {[%emt 00:05:17]} 19.
Qb2+ {[%clk 01:16:25]} {[%emt 00:01:42]} f6 {[%clk 00:53:19]} {[%emt 00:03:14]}
20. Rd2 {[%clk 01:16:34]} {[%emt 00:00:20]} Ne5 {[%clk 00:49:03]} {[%emt
00:04:46]} 21. Rad1 {[%clk 01:14:14]} {[%emt 00:02:50]} b5 {[%clk 00:47:23]}
{[%emt 00:02:10]} 22. Rc1 {[%clk 01:09:03]} {[%emt 00:05:40]} Rdc8 {[%clk
00:44:00]} {[%emt 00:03:54]} 23. Rdc2 {[%clk 01:07:53]} {[%emt 00:01:40]} a5
{[%clk 00:37:15]} {[%emt 00:07:15]} 24. h3 {[%clk 00:59:49]} {[%emt 00:08:34]}
b4 {[%clk 00:31:31]} {[%emt 00:06:15]} 25. Qd4 {[%clk 00:58:25]} {[%emt
00:01:53]} Nf7 {[%clk 00:27:14]} {[%emt 00:04:47]} 26. Rc4 {[%clk 00:55:54]}
{[%emt 00:03:01]} Rxc4 {[%clk 00:20:02]} {[%emt 00:07:42]} 27. Qxc4 {[%clk
00:54:49]} {[%emt 00:01:35]} Qb5 {[%clk 00:18:02]} {[%emt 00:02:30]} 28. Qc7
{[%clk 00:50:50]} {[%emt 00:04:28]} Re8 {[%clk 00:17:12]} {[%emt 00:01:20]} 29.
Bc6 {[%clk 00:49:09]} {[%emt 00:02:12]} Qxe2 {[%clk 00:15:13]} {[%emt
00:02:29]} 30. Bxe8 {[%clk 00:49:33]} {[%emt 00:00:05]} Qxe8 {[%clk 00:15:39]}
{[%emt 00:00:05]} 31. Qxa5 {[%clk 00:49:18]} {[%emt 00:00:45]} Ng5 {[%clk
00:12:21]} {[%emt 00:03:48]} 32. h4 {[%clk 00:46:10]} {[%emt 00:03:37]} Nf3+
{[%clk 00:12:14]} {[%emt 00:00:37]} 33. Kg2 {[%clk 00:46:26]} {[%emt 00:00:14]}
Qe4 {[%clk 00:07:53]} {[%emt 00:04:50]} 34. Qa7+ {[%clk 00:46:48]} {[%emt
00:00:08]} Kh6 {[%clk 00:08:02]} {[%emt 00:00:21]} 35. Qe3+ {[%clk 00:47:12]}
{[%emt 00:00:06]} 1-0